fUSD/lending_fUSD_20251220
["ID","MTS","AMOUNT","RATE_DAILY","PERIOD"]
[399235730,1766195441324,-311.27445849,0.00013698,2]
[399235731,1766195441334,-500.0,0.00013698,2]
[399235732,1766195441343,-500.0,0.00013698,2]
[399235733,1766195441353,-500.0,0.00013698,2]
[399235734,1766195441362,-500.0,0.00013698,2]
[399235735,1766195441372,-500.0,0.00013698,2]
[399235736,1766195441381,-1614.17,0.00013698,2]
[399235737,1766195441391,-554.51,0.00013699,2]
[399235738,1766195441402,-166.66,0.00013699,2]
[399235739,1766195441411,-500.0,0.00013699,2]
[399235740,1766195441420,-169.3828428,0.00013699,2]
[399235741,1766195441430,-500.0,0.00013699,2]
[399235742,1766195441439,-500.0,0.00013699,2]
[399235743,1766195441449,-500.0,0.00013699,2]
[399235744,1766195441459,-500.0,0.00013699,2]
[399235745,1766195441468,-500.0,0.00013699,2]
[399235746,1766195441478,-500.0,0.00013699,2]
[399235747,1766195441488,-500.0,0.00013699,2]
[399235748,1766195441497,-500.0,0.00013699,2]
[399235749,1766195441507,-500.0,0.00013699,2]
[399235750,1766195441516,-500.0,0.00013699,2]
[399235751,1766195441525,-500.0,0.00013699,2]
[399235752,1766195441535,-500.0,0.00013699,2]
[399235753,1766195441544,-500.0,0.00013699,2]
[399235754,1766195441553,-500.0,0.00013699,2]
[399235755,1766195441564,-500.0,0.00013699,2]
[399235756,1766195441574,-500.0,0.00013699,2]
[399235757,1766195441583,-499.72722483,0.00013699,2]
[399235758,1766195441592,-500.0,0.00013699,2]
[399235759,1766195441602,-2748.82,0.000137,2]
[399235760,1766195441611,-2748.82,0.000137,2]
[399235761,1766195441619,-2748.82,0.000137,2]
[399235762,1766195441628,-2748.82,0.000137,2]
[399235763,1766195441638,-2748.82,0.000137,2]
[399235764,1766195441647,-174.74495914,0.00013773,2]
[399235765,1766195441656,-500.48342927,0.00013773,2]
[399235766,1766195441665,-500.0,0.00013773,2]
[399235767,1766195441674,-500.0,0.00013773,2]
[399235768,1766195441683,-535.09556247,0.00013773,2]
[399235769,1766195441692,-500.0,0.00013773,2]
[399235770,1766195441701,-500.0,0.00013773,2]
[399235771,1766195441710,-500.0,0.00013773,2]
[399235772,1766195441719,-500.0,0.00013773,2]
[399235773,1766195441728,-163.72295793,0.00013773,2]
[399235774,1766195441737,-500.0,0.00013773,2]
[399235775,1766195441746,-453.43519306,0.00013773,2]
[399235776,1766195441756,-500.0,0.00013773,2]
[399235777,1766195441765,-500.0,0.00013773,2]
[399235778,1766195441774,-500.0,0.00013773,2]
[399235779,1766195441784,-500.0,0.00013773,2]
[399235780,1766195441793,-500.0,0.00013773,2]
[399235781,1766195441803,-627.27365114,0.00013773,2]
[399235782,1766195441812,-500.0,0.00013773,2]
[399235783,1766195441821,-483.93215772,0.00013773,2]
[399235784,1766195441830,-500.0,0.00013773,2]
[399235785,1766195441840,-500.0,0.00013773,2]
[399235786,1766195441849,-500.29495199,0.00013773,2]
[399235787,1766195441864,-315.42381846,0.00013773,2]
[399235788,1766195441878,-500.0,0.00013773,2]
[399235789,1766195441887,-165.31243658,0.00013773,2]
[399235790,1766195441897,-500.0,0.00013773,2]
[399235791,1766195441906,-500.0,0.00013773,2]
[399235792,1766195441915,-300.0,0.0001381,2]
[399235793,1766195441925,-300.0,0.0001381,2]
[399235794,1766195441934,-300.0,0.0001381,2]
[399235795,1766195441943,-250.0,0.0001381,2]
[399235796,1766195441952,-300.0,0.0001381,2]
[399235797,1766195441961,-300.0,0.0001381,2]
[399235798,1766195441971,-300.0,0.0001381,2]
[399235799,1766195441980,-302.26771089,0.0001381,2]
[399235800,1766195441989,-500.0,0.00013827,2]
[399235801,1766195441998,-497.0,0.00013827,2]
[399235802,1766195442008,-500.0,0.00013827,2]
[399235803,1766195442017,-500.0,0.00013827,2]
[399235804,1766195442027,-500.0,0.00013827,2]
[399235805,1766195442036,-1157.0,0.00013827,2]
[399235806,1766195442045,-554.0,0.00013827,2]
[399235807,1766195442054,-500.0,0.00013827,2]
[399235808,1766195442063,-500.0,0.00013827,2]
[399235809,1766195442073,-217.93510683,0.00013827,2]
[399235810,1766195442082,-724.0,0.00013827,2]
[399235811,1766195442091,-500.0,0.00013827,2]
[399235812,1766195442100,-500.0,0.00013827,2]
[399235813,1766195442110,-470.0,0.00013827,2]
[399235814,1766195442119,-500.0,0.00013827,2]
[399235815,1766195442132,-500.0,0.00013827,2]
[399235816,1766195442141,-500.0,0.00013835,2]
[399235817,1766195442150,-500.0,0.00013835,2]
[399235818,1766195442160,-154.04785046,0.00013835,2]
[399235819,1766195442169,-189.21891679,0.00013835,2]
[399235820,1766195442179,-150.0,0.00013835,2]
[399235821,1766195442188,-602.86533629,0.00013835,2]
[399235822,1766195442197,-150.0,0.00013835,2]
[399235823,1766195442207,-151.82870014,0.00013835,2]
[399235824,1766195442216,-166.66,0.00013836,2]
[399235825,1766195442225,-281.73596008,0.00013864,2]
[399235826,1766195442238,-16408.58760563,0.00013913,2]
[399235827,1766195442248,-280.0,0.00013945,2]
[399235828,1766195442257,-12468.68072969,0.00013958,2]
[399235829,1766195442267,-497.0,0.00013964,2]
[399235830,1766195442276,-627.04316903,0.00013964,2]
[399235831,1766195442286,-500.0,0.00013964,2]
[399235832,1766195442295,-500.0,0.00013964,2]
[399235833,1766195442305,-1157.0,0.00013964,2]
[399235834,1766195442314,-554.0,0.00013964,2]
[399235835,1766195442324,-500.0,0.00013964,2]
[399235836,1766195442333,-500.0,0.00013964,2]
[399235837,1766195442343,-724.0,0.00013964,2]
[399235838,1766195442352,-154.13088921,0.00013964,2]
[399235839,1766195442361,-500.0,0.00013964,2]
[399235840,1766195442370,-470.0,0.00013964,2]
[399235841,1766195442379,-500.0,0.00013964,2]
[399235842,1766195442389,-500.0,0.00013964,2]
[399235843,1766195442398,-500.0,0.00013972,2]
[399235844,1766195442408,-370.18922892,0.00013972,2]
[399235845,1766195442418,-201.41286545,0.00013972,2]
[399235846,1766195442431,-164.23762974,0.00013972,2]
[399235847,1766195442441,-1614.17,0.00013972,2]
[399235848,1766195442451,-166.66,0.00013973,2]
[399235849,1766195442461,-167.21,0.00013985,2]
[399235850,1766195442482,-1037.0,0.00013995,2]
[399235851,1766195442491,-151.0,0.00013995,2]
[399235852,1766195442501,-151.0,0.00013995,2]
[399235853,1766195442510,-250.0,0.00013995,2]
[399235854,1766195442520,-153.78508436,0.00013995,2]
[399235855,1766195442530,-250.0,0.00013995,2]
[399235856,1766195442540,-173.95994129,0.00013995,2]
[399235857,1766195442549,-592.95411986,0.00013995,2]
[399235858,1766195442559,-500.0,0.00013995,2]
[399235859,1766195442569,-500.0,0.00013995,2]
[399235860,1766195442578,-620.0,0.00013995,2]
[399235861,1766195442588,-500.0,0.00013995,2]
[399235862,1766195442598,-500.0,0.00013995,2]
[399235863,1766195442608,-500.0,0.00013995,2]
[399235864,1766195442618,-500.0,0.00013995,2]
[399235865,1766195442631,-500.0,0.00013995,2]
[399235866,1766195442640,-500.0,0.00013995,2]
[399235867,1766195442650,-500.0,0.00013995,2]
[399235868,1766195442660,-500.0,0.00013995,2]
[399235869,1766195442670,-500.0,0.00013995,2]
[399235870,1766195442679,-220.0,0.00013995,2]
[399235871,1766195442688,-500.0,0.00013995,2]
[399235872,1766195442698,-500.0,0.00013995,2]
[399235873,1766195442707,-220.0,0.00013995,2]
[399235874,1766195442717,-500.0,0.00013995,2]
[399235875,1766195442726,-500.0,0.00013995,2]
[399235876,1766195442735,-220.0,0.00013995,2]
[399235877,1766195442745,-500.0,0.00013995,2]
[399235878,1766195442754,-500.0,0.00013995,2]
[399235879,1766195442763,-220.0,0.00013995,2]
[399235880,1766195442772,-500.0,0.00013995,2]
[399235881,1766195442782,-500.0,0.00013995,2]
[399235882,1766195442791,-220.0,0.00013995,2]
[399235883,1766195442801,-500.0,0.00013995,2]
[399235884,1766195442811,-220.0,0.00013995,2]
[399235885,1766195442821,-500.0,0.00013995,2]
[399235886,1766195442835,-574.12855637,0.00013995,2]
[399235887,1766195442846,-252.4499311,0.00013995,2]
[399235888,1766195442856,-500.0,0.00013995,2]
[399235889,1766195442866,-500.0,0.00013995,2]
[399235890,1766195442877,-500.0,0.00013995,2]
[399235891,1766195442888,-500.0,0.00013995,2]
[399235892,1766195442898,-500.0,0.00013995,2]
[399235893,1766195442908,-500.0,0.00013995,2]
[399235894,1766195442917,-500.0,0.00013995,2]
[399235895,1766195442927,-500.0,0.00013995,2]
[399235896,1766195442937,-500.0,0.00013995,2]
[399235897,1766195442947,-500.0,0.00013995,2]
[399235898,1766195442956,-500.0,0.00013995,2]
[399235899,1766195442967,-500.0,0.00013995,2]
[399235900,1766195442978,-500.0,0.00013995,2]
[399235901,1766195442988,-500.0,0.00013995,2]
[399235902,1766195442999,-500.0,0.00013995,2]
[399235903,1766195443010,-500.0,0.00013995,2]
[399235904,1766195443023,-500.0,0.00013995,2]
[399235905,1766195443033,-500.0,0.00013995,2]
[399235906,1766195443044,-500.0,0.00013995,2]
[399235907,1766195443056,-578.20924308,0.00013995,2]
[399235908,1766195443067,-500.0,0.00013995,2]
[399235909,1766195443076,-500.0,0.00013995,2]
[399235910,1766195443087,-500.0,0.00013995,2]
[399235911,1766195443096,-500.0,0.00013995,2]
[399235912,1766195443106,-9552.16786547,0.00013995,2]
[399235913,1766195443117,-500.0,0.00013995,2]
[399235914,1766195443129,-500.0,0.00013995,2]
[399235917,1766195443415,-500.0,0.00013995,2]
[399235918,1766195443426,-500.0,0.00013995,2]
[399235919,1766195443436,-500.0,0.00013995,2]
[399235920,1766195443446,-500.0,0.00013995,2]
[399235921,1766195443456,-500.0,0.00013995,2]
[399235922,1766195443466,-500.0,0.00013995,2]
[399235923,1766195443476,-300.0,0.00013995,2]
[399235924,1766195443486,-500.0,0.00013995,2]
[399235925,1766195443495,-500.0,0.00013995,2]
[399235926,1766195443505,-500.0,0.00013995,2]
[399235927,1766195443524,-250.0,0.00013995,2]
[399235928,1766195443535,-250.0,0.00013995,2]
[399235929,1766195443545,-250.0,0.00013995,2]
[399235930,1766195443556,-250.0,0.00013995,2]
[399235931,1766195443566,-250.0,0.00013995,2]
[399235932,1766195443576,-250.0,0.00013995,2]
[399235933,1766195443586,-250.0,0.00013995,2]
[399235934,1766195443596,-250.0,0.00013995,2]
[399235935,1766195443606,-250.0,0.00013995,2]
[399235936,1766195443616,-250.0,0.00013995,2]
[399235937,1766195443626,-250.0,0.00013995,2]
[399235938,1766195443636,-500.0,0.00013995,2]
[399235939,1766195443647,-500.0,0.00013995,2]
[399235940,1766195443665,-500.0,0.00013995,2]
[399235941,1766195443674,-500.0,0.00013995,2]
[399235942,1766195443684,-1199.0,0.00013995,2]
[399235943,1766195443694,-500.0,0.00013995,2]
[399235944,1766195443703,-500.0,0.00013995,2]
[399235945,1766195443713,-500.0,0.00013995,2]
[399235946,1766195443722,-500.0,0.00013995,2]
[399235947,1766195443732,-500.0,0.00013995,2]
[399235948,1766195443741,-500.0,0.00013995,2]
[399235949,1766195443751,-500.0,0.00013995,2]
[399235950,1766195443761,-833.23475386,0.00013995,2]
[399235951,1766195443771,-200.0,0.00013995,2]
[399235952,1766195443781,-207.4,0.00013995,2]
[399235953,1766195443791,-215.0738,0.00013995,2]
[399235954,1766195443800,-223.0315306,0.00013995,2]
[399235955,1766195443810,-231.28369723,0.00013995,2]
[399235956,1766195443820,-239.84119403,0.00013995,2]
[399235957,1766195443830,-395.65042272,0.00013995,2]
[399235958,1766195443841,-1457.22248038,0.0001405,2]
[399235959,1766195443851,-500.0,0.00014088,2]
[399235960,1766195443860,-200.0,0.00014088,2]
[399235961,1766195443871,-200.0,0.00014088,2]
[399235962,1766195443881,-503.47867429,0.00014101,2]
[399235963,1766195443890,-497.0,0.00014101,2]
[399235964,1766195443904,-500.0,0.00014101,2]
[399235965,1766195443915,-456.47386285,0.00014101,2]
[399235966,1766195443925,-1157.0,0.00014101,2]
[399235967,1766195443935,-554.0,0.00014101,2]
[399235968,1766195443944,-500.0,0.00014101,2]
[399235969,1766195443954,-500.0,0.00014101,2]
[399235970,1766195443964,-724.0,0.00014101,2]
[399235971,1766195443974,-296.5190321,0.00014101,2]
[399235972,1766195443984,-470.0,0.00014101,2]
[399235973,1766195443994,-500.0,0.00014101,2]
[399235974,1766195444003,-500.0,0.00014101,2]
[399235975,1766195444013,-500.0,0.00014109,2]
[399235976,1766195444022,-166.66,0.0001411,2]
[399235977,1766195444033,-1600.0,0.00014124,2]
[399235978,1766195444043,-293.77087501,0.00014142,2]
[399235979,1766195444058,-255.0,0.00014223,2]
[399235980,1766195444068,-497.0,0.00014238,2]
[399235981,1766195444078,-500.0,0.00014238,2]
[399235982,1766195444088,-1157.0,0.00014238,2]
[399235983,1766195444097,-554.0,0.00014238,2]
[399235984,1766195444107,-500.0,0.00014238,2]
[399235985,1766195444117,-500.0,0.00014238,2]
[399235986,1766195444130,-724.0,0.00014238,2]
[399235987,1766195444139,-470.0,0.00014238,2]
[399235988,1766195444149,-500.0,0.00014238,2]
[399235989,1766195444159,-500.0,0.00014238,2]
[399235990,1766195444168,-500.0,0.00014246,2]
[399235991,1766195444178,-1614.17,0.00014246,2]
[399235992,1766195444188,-166.66,0.00014247,2]
[399235993,1766195444198,-16408.58760563,0.00014287,2]
[399235994,1766195444207,-1000.0,0.00014292,2]
[399235995,1766195444217,-1000.0,0.00014292,2]
[399235996,1766195444226,-1000.0,0.00014292,2]
[399235997,1766195444236,-1000.0,0.00014292,2]
[399235998,1766195444245,-1000.0,0.00014292,2]
[399235999,1766195444255,-1000.0,0.00014292,2]
[399236000,1766195444265,-1000.0,0.00014321,2]
[399236001,1766195444275,-1000.0,0.00014321,2]
[399236002,1766195444288,-635.18911943,0.00014321,2]
[399236003,1766195444298,-1000.0,0.00014321,2]
[399236004,1766195444308,-572.75082077,0.00014321,2]
[399236005,1766195444318,-1000.78461254,0.00014321,2]
[399236006,1766195444328,-1000.0,0.00014321,2]
[399236007,1766195444338,-1000.0,0.00014321,2]
[399236008,1766195444349,-502.93994495,0.00014321,2]
[399236009,1766195444359,-1002.20443143,0.00014321,2]
[399236010,1766195444372,-1000.0,0.00014321,2]
[399236011,1766195444384,-1000.0,0.00014321,2]
[399236012,1766195444395,-1000.0,0.00014321,2]
[399236013,1766195444406,-1000.0,0.00014321,2]
[399236014,1766195444417,-1000.0,0.00014321,2]
[399236015,1766195444428,-1000.0,0.00014321,2]
[399236016,1766195444438,-502.74001595,0.00014321,2]
[399236017,1766195444448,-1000.0,0.00014321,2]
[399236018,1766195444458,-12468.68072969,0.00014326,2]
[399236019,1766195444468,-420.0,0.00014359,2]
[399236020,1766195444478,-497.0,0.00014375,2]
[399236021,1766195444488,-500.0,0.00014375,2]
[399236022,1766195444498,-554.0,0.00014375,2]
[399236023,1766195444508,-1157.0,0.00014375,2]
[399236024,1766195444519,-500.0,0.00014375,2]
[399236025,1766195444529,-594.46720365,0.00014375,2]
[399236026,1766195444539,-724.0,0.00014375,2]
[399236027,1766195444549,-470.0,0.00014375,2]
[399236028,1766195444559,-500.0,0.00014375,2]
[399236029,1766195444569,-500.0,0.00014375,2]
[399236030,1766195444580,-500.0,0.00014383,2]
[399236031,1766195444590,-166.66,0.00014384,2]
[399236032,1766195444600,-500.0,0.00014388,2]
[399236033,1766195444610,-15019.92,0.00014389,2]
[399236034,1766195444620,-1680.0,0.00014405,2]
[399236035,1766195444630,-497.0,0.00014512,2]
[399236036,1766195444640,-500.0,0.00014512,2]
[399236037,1766195444650,-554.0,0.00014512,2]
[399236038,1766195444660,-1157.0,0.00014512,2]
[399236039,1766195444673,-500.0,0.00014512,2]
[399236040,1766195444683,-724.0,0.00014512,2]
[399236041,1766195444693,-470.0,0.00014512,2]
[399236042,1766195444703,-500.0,0.00014512,2]
[399236043,1766195444713,-500.0,0.00014512,2]
[399236044,1766195444724,-500.0,0.0001452,2]
[399236045,1766195444734,-1614.17,0.0001452,2]
[399236046,1766195444744,-1075.369,0.00014543,2]
[399236047,1766195444754,-151.0,0.00014543,2]
[399236048,1766195444764,-595.37131296,0.00014543,2]
[399236049,1766195444774,-500.0,0.00014636,2]
[399236050,1766195444784,-200.0,0.00014636,2]
[399236051,1766195444794,-200.0,0.00014636,2]
[399236052,1766195444804,-497.0,0.00014649,2]
[399236053,1766195444814,-500.0,0.00014649,2]
[399236054,1766195444823,-554.0,0.00014649,2]
[399236055,1766195444834,-1157.0,0.00014649,2]
[399236056,1766195444844,-500.0,0.00014649,2]
[399236057,1766195444855,-724.0,0.00014649,2]
[399236058,1766195444867,-470.0,0.00014649,2]
[399236059,1766195444876,-500.0,0.00014649,2]
[399236060,1766195444887,-500.0,0.00014649,2]
[399236061,1766195444897,-500.0,0.00014657,2]
[399236062,1766195444907,-16408.58760563,0.0001466,2]
[399236063,1766195444917,-293.77087501,0.00014693,2]
[399236064,1766195444928,-12468.68072969,0.00014693,2]
[399236065,1766195444938,-497.0,0.00014786,2]
[399236066,1766195444949,-500.0,0.00014786,2]
[399236067,1766195444959,-554.0,0.00014786,2]
[399236068,1766195444969,-1157.0,0.00014786,2]
[399236069,1766195444980,-500.0,0.00014786,2]
[399236070,1766195444991,-724.0,0.00014786,2]
[399236071,1766195445002,-470.0,0.00014786,2]
[399236072,1766195445012,-500.0,0.00014786,2]
[399236073,1766195445023,-500.0,0.00014786,2]
[399236074,1766195445035,-500.0,0.00014794,2]
[399236075,1766195445045,-1614.17,0.00014794,2]
[399236076,1766195445058,-1500.0,0.00014868,2]
[399236077,1766195445071,-501.91769362,0.00014868,2]
[399236078,1766195445081,-1500.0,0.00014868,2]
[399236079,1766195445094,-1500.0,0.00014868,2]
[399236080,1766195445105,-711.67995912,0.00014868,2]
[399236081,1766195445121,-1001.51415398,0.00014868,2]
[399236082,1766195445135,-1500.0,0.00014868,2]
[399236083,1766195445157,-1003.97714891,0.00014868,2]
[399236084,1766195445168,-1500.0,0.00014868,2]
[399236085,1766195445178,-1500.0,0.00014868,2]
[399236086,1766195445188,-501.58945381,0.00014868,2]
[399236087,1766195445198,-1500.0,0.00014868,2]
[399236088,1766195445212,-500.0,0.00014874,2]
[399236089,1766195445222,-497.0,0.00014923,2]
[399236090,1766195445232,-500.0,0.00014923,2]
[399236091,1766195445242,-554.0,0.00014923,2]
[399236092,1766195445252,-1157.0,0.00014923,2]
[399236093,1766195445262,-500.0,0.00014923,2]
[399236094,1766195445272,-724.0,0.00014923,2]
[399236095,1766195445282,-470.0,0.00014923,2]
[399236096,1766195445292,-395.20598099,0.00014923,2]
[399236097,1766195445302,-351.31035432,0.00014923,2]
[399236098,1766195445314,-500.0,0.00014931,2]
[399236099,1766195445323,-151.0,0.0001503,2]
[399236100,1766195445333,-16408.58760563,0.00015033,2]
[399236101,1766195445343,-151.0,0.00015055,2]
[399236102,1766195445352,-497.0,0.0001506,2]
[399236103,1766195445361,-500.0,0.0001506,2]
[399236104,1766195445371,-554.0,0.0001506,2]
[399236105,1766195445380,-1157.0,0.0001506,2]
[399236106,1766195445389,-500.0,0.0001506,2]
[399236107,1766195445399,-724.0,0.0001506,2]
[399236108,1766195445409,-470.0,0.0001506,2]
[399236109,1766195445419,-12468.68072969,0.00015061,2]
[399236110,1766195445428,-500.0,0.00015068,2]
[399236111,1766195445438,-151.90726099,0.00015068,2]
[399236112,1766195445448,-1614.17,0.00015068,2]
[399236113,1766195445458,-900.0,0.00015068,2]
[399236114,1766195445468,-151.0,0.00015072,2]
[399236115,1766195445478,-151.0,0.00015073,2]
[399236116,1766195445487,-301.37247362,0.00015091,2]
[399236117,1766195445497,-152.47844731,0.00015091,2]
[399236118,1766195445507,-617.40005154,0.00015091,2]
[399236119,1766195445517,-500.0,0.00015184,2]
[399236120,1766195445527,-200.0,0.00015184,2]
[399236121,1766195445537,-200.0,0.00015184,2]
[399236122,1766195445547,-497.0,0.00015197,2]
[399236123,1766195445557,-500.0,0.00015197,2]
[399236124,1766195445566,-554.0,0.00015197,2]
[399236126,1766195445576,-1157.0,0.00015197,2]
[399236127,1766195445586,-500.0,0.00015197,2]
[399236128,1766195445596,-724.0,0.00015197,2]
[399236129,1766195445606,-470.0,0.00015197,2]
[399236130,1766195445615,-500.0,0.00015205,2]
[399236131,1766195445624,-293.77087501,0.00015245,2]
[399236132,1766195445634,-167.21,0.00015256,2]
[399236133,1766195445643,-160.33063992,0.00015288,2]
[399236134,1766195445652,-155.64705311,0.00015288,2]
[399236135,1766195445661,-158.48329942,0.00015288,2]
[399236136,1766195445670,-156.76422926,0.00015288,2]
[399236137,1766195445680,-150.0,0.00015288,2]
[399236138,1766195445690,-151.72084113,0.00015288,2]
[399236139,1766195445699,-157.75435091,0.00015288,2]
[399236140,1766195445709,-152.11986511,0.00015288,2]
[399236141,1766195445718,-151.68546767,0.00015288,2]
[399236142,1766195445727,-152.94375339,0.00015288,2]
[399236143,1766195445737,-150.82546103,0.00015288,2]
[399236144,1766195445746,-152.70737667,0.00015288,2]
[399236145,1766195445755,-500.0,0.00015333,2]
[399236146,1766195445765,-500.0,0.00015333,2]
[399236147,1766195445774,-500.0,0.00015333,2]
[399236148,1766195445784,-210.07659514,0.00015333,2]
[399236149,1766195445800,-497.0,0.00015334,2]
[399236150,1766195445817,-500.0,0.00015334,2]
[399236151,1766195445826,-554.0,0.00015334,2]
[399236152,1766195445836,-1157.0,0.00015334,2]
[399236153,1766195445846,-500.0,0.00015334,2]
[399236154,1766195445856,-724.0,0.00015334,2]
[399236155,1766195445866,-470.0,0.00015334,2]
[399236156,1766195445875,-214.49,0.00015337,2]
[399236157,1766195445884,-335.62237437,0.00015342,2]
[399236158,1766195445985,-1614.17,0.00015342,2]
[399236159,1766195445997,-151.0,0.00015364,2]
[399236160,1766195446008,-311.1,0.00015364,2]
[399236161,1766195446031,-16408.58760563,0.00015407,2]
[399236162,1766195446043,-2000.0,0.00015416,2]
[399236163,1766195446052,-688.04388907,0.00015416,2]
[399236164,1766195446061,-1502.17420355,0.00015416,2]
[399236165,1766195446071,-1003.12423045,0.00015416,2]
[399236166,1766195446080,-1001.47727649,0.00015416,2]
[399236167,1766195446089,-893.70965969,0.00015416,2]
[399236168,1766195446098,-2000.0,0.00015416,2]
[399236169,1766195446108,-433.0,0.00015417,2]
[399236170,1766195446119,-12468.68072969,0.00015429,2]
[399236171,1766195446131,-497.0,0.00015471,2]
[399236172,1766195446140,-500.0,0.00015471,2]
[399236174,1766195446150,-554.0,0.00015471,2]
[399236175,1766195446159,-1157.0,0.00015471,2]
[399236176,1766195446168,-500.0,0.00015471,2]
[399236177,1766195446177,-724.0,0.00015471,2]
[399236178,1766195446187,-470.0,0.00015471,2]
[399236179,1766195446196,-238.59,0.00015507,2]
[399236180,1766195446206,-364.6268092,0.00015553,2]
[399236181,1766195446215,-497.0,0.00015608,2]
[399236182,1766195446224,-500.0,0.00015608,2]
[399236183,1766195446233,-554.0,0.00015608,2]
[399236184,1766195446244,-1157.0,0.00015608,2]
[399236185,1766195446260,-466.65080545,0.00015608,2]
[399236186,1766195446269,-724.0,0.00015608,2]
[399236187,1766195446279,-470.0,0.00015608,2]
[399236188,1766195446288,-1614.17,0.00015616,2]
[399236189,1766195446297,-150.0,0.00015627,2]
[399236190,1766195446307,-640.24385345,0.00015639,2]
[399236191,1766195446316,-1600.0,0.00015693,2]
[399236192,1766195446324,-500.0,0.00015732,2]
[399236193,1766195446334,-200.0,0.00015732,2]
[399236194,1766195446343,-200.0,0.00015732,2]
[399236195,1766195446352,-497.0,0.00015745,2]
[399236196,1766195446362,-164.00458563,0.00015745,2]
[399236197,1766195446371,-554.0,0.00015745,2]
[399236198,1766195446381,-1157.0,0.00015745,2]
[399236199,1766195446390,-724.0,0.00015745,2]
[399236200,1766195446400,-470.0,0.00015745,2]
[399236201,1766195446409,-587.0,0.00015746,2]
[399236202,1766195446418,-166.66,0.00015771,2]
[399236203,1766195446427,-16408.58760563,0.0001578,2]
[399236204,1766195446437,-293.77087501,0.00015797,2]
[399236205,1766195446446,-12468.68072969,0.00015797,2]
[399236206,1766195446455,-2351.0,0.00015845,2]
[399236207,1766195446464,-497.0,0.00015882,2]
[399236208,1766195446474,-554.0,0.00015882,2]
[399236209,1766195446483,-1157.0,0.00015882,2]
[399236210,1766195446492,-724.0,0.00015882,2]
[399236211,1766195446501,-470.0,0.00015882,2]
[399236212,1766195446510,-1614.17,0.0001589,2]
[399236213,1766195446519,-532.36824328,0.000159,2]
[399236214,1766195446528,-532.36824323,0.000159,2]
[399236215,1766195446537,-532.36824323,0.000159,2]
[399236216,1766195446545,-532.36824323,0.000159,2]
[399236217,1766195446555,-532.36824323,0.000159,2]
[399236218,1766195446564,-323.3,0.00015958,2]
[399236219,1766195446573,-2500.0,0.00015964,2]
[399236220,1766195446582,-2500.0,0.00015964,2]
[399236221,1766195446591,-150.0,0.00015967,2]
[399236222,1766195446600,-508.16794358,0.00015999,2]
[399236223,1766195446609,-511.45159126,0.00015999,2]
[399236224,1766195446618,-517.41741792,0.00015999,2]
[399236225,1766195446627,-509.96416429,0.00015999,2]
[399236226,1766195446636,-497.0,0.00016019,2]
[399236227,1766195446646,-554.0,0.00016019,2]
[399236228,1766195446655,-1157.0,0.00016019,2]
[399236229,1766195446664,-724.0,0.00016019,2]
[399236230,1766195446673,-470.0,0.00016019,2]
[399236231,1766195446682,-16408.58760563,0.00016153,2]
[399236232,1766195446691,-497.0,0.00016156,2]
[399236233,1766195446700,-554.0,0.00016156,2]